[Event "*** SCC Grand Prix: Titled Tuesday Blitz"]
[Site "Chess.com"]
[Date "2020.06.23"]
[Round "1"]
[White "LiverpooL174"]
[Black "dopolian"]
[Result "0-1"]
[WhiteElo "2669"]
[BlackElo "2365"]
[TimeControl "180+1"]
[EndTime "10:00:56 PDT"]
[Termination "dopolian won by resignation"]

1. Nf3 {[%clk 0:02:52.8]} 1... Nf6 {[%clk 0:02:58.6]} 2. b3 {[%clk 0:02:53.7]}
2... g6 {[%clk 0:02:58.4]} 3. Bb2 {[%clk 0:02:54.6]} 3... Bg7 {[%clk 0:02:58.9]}
4. g3 {[%clk 0:02:54.7]} 4... O-O {[%clk 0:02:59.4]} 5. Bg2 {[%clk 0:02:55.4]}
5... d6 {[%clk 0:02:58.2]} 6. d4 {[%clk 0:02:55.5]} 6... Nc6 {[%clk 0:02:54]} 7.
O-O {[%clk 0:02:55.9]} 7... e5 {[%clk 0:02:54]} 8. dxe5 {[%clk 0:02:56.8]} 8...
Ng4 {[%clk 0:02:53.4]} 9. c4 {[%clk 0:02:56.2]} 9... Ngxe5 {[%clk 0:02:53]} 10.
Nc3 {[%clk 0:02:56.9]} 10... Bg4 {[%clk 0:02:51.1]} 11. Nxe5 {[%clk 0:02:53.4]}
11... dxe5 {[%clk 0:02:52]} 12. Qd2 {[%clk 0:02:54.3]} 12... Qxd2 {[%clk
0:02:51.3]} 0-1

[Event "*** SCC Grand Prix: Titled Tuesday Blitz"]
[Site "Chess.com"]
[Date "2020.06.23"]
[Round "1"]
[White "Bastiandash"]
[Black "iaraldinho"]
[Result "0-1"]
[WhiteElo "2215"]
[BlackElo "2563"]
[TimeControl "180+1"]
[EndTime "10:01:40 PDT"]
[Termination "iaraldinho won by resignation"]

1. d4 {[%clk 0:03:00.5]} 1... f5 {[%clk 0:02:59]} 2. Nf3 {[%clk 0:03:01.4]} 2...
Nf6 {[%clk 0:02:58.7]} 3. c3 {[%clk 0:02:58.8]} 3... g6 {[%clk 0:02:59]} 4. Bg5
{[%clk 0:02:59.7]} 4... Bg7 {[%clk 0:02:59.3]} 5. Nbd2 {[%clk 0:02:59.7]} 5...
O-O {[%clk 0:02:59]} 6. Bxf6 {[%clk 0:02:56.8]} 6... Bxf6 {[%clk 0:02:59.9]} 7.
e4 {[%clk 0:02:57.5]} 7... fxe4 {[%clk 0:02:58.6]} 8. Nxe4 {[%clk 0:02:58.4]}
8... Bg7 {[%clk 0:02:59.4]} 9. Bd3 {[%clk 0:02:57]} 9... d5 {[%clk 0:02:59.3]}
10. Ned2 {[%clk 0:02:51.3]} 10... c5 {[%clk 0:02:58.7]} 11. Qe2 {[%clk
0:02:46.4]} 11... Nc6 {[%clk 0:02:59.6]} 12. dxc5 {[%clk 0:02:42.5]} 12... e5
{[%clk 0:02:58.8]} 13. Bb5 {[%clk 0:02:41.6]} 13... e4 {[%clk 0:02:58.5]} 14.
Nd4 {[%clk 0:02:33.5]} 14... Bxd4 {[%clk 0:02:51.6]} 15. cxd4 {[%clk 0:02:34.4]}
15... Nxd4 {[%clk 0:02:51.2]} 16. Qf1 {[%clk 0:02:24.6]} 16... e3 {[%clk
0:02:50.7]} 17. Nf3 {[%clk 0:02:19.3]} 17... Qa5+ {[%clk 0:02:49]} 0-1

[Event "*** SCC Grand Prix: Titled Tuesday Blitz"]
[Site "Chess.com"]
[Date "2020.06.23"]
[Round "1"]
[White "MasterKroket"]
[Black "LittlePeasant"]
[Result "1-0"]
[WhiteElo "2423"]
[BlackElo "2789"]
[TimeControl "180+1"]
[EndTime "10:02:23 PDT"]
[Termination "MasterKroket won by resignation"]

1. d4 {[%clk 0:03:00.9]} 1... Nf6 {[%clk 0:02:58.9]} 2. c4 {[%clk 0:03:00.6]}
2... e6 {[%clk 0:02:58.4]} 3. Nf3 {[%clk 0:03:00.6]} 3... d5 {[%clk 0:02:58.2]}
4. Nc3 {[%clk 0:03:01.1]} 4... dxc4 {[%clk 0:02:58.3]} 5. Bg5 {[%clk 0:02:57.8]}
5... a6 {[%clk 0:02:56.7]} 6. e4 {[%clk 0:02:55.7]} 6... b5 {[%clk 0:02:50.9]}
7. e5 {[%clk 0:02:54.9]} 7... h6 {[%clk 0:02:50.1]} 8. Bh4 {[%clk 0:02:50.4]}
8... g5 {[%clk 0:02:49.7]} 9. Nxg5 {[%clk 0:02:49.1]} 9... hxg5 {[%clk 0:02:50]}
10. Bxg5 {[%clk 0:02:50]} 10... Be7 {[%clk 0:02:50.3]} 11. exf6 {[%clk
0:02:46.6]} 11... Bxf6 {[%clk 0:02:50.3]} 12. Qf3 {[%clk 0:02:36.9]} 12... Bxg5
{[%clk 0:02:49.1]} 13. Qxa8 {[%clk 0:02:30.1]} 13... Qxd4 {[%clk 0:02:48.5]} 14.
Rd1 {[%clk 0:02:26.2]} 14... Qb6 {[%clk 0:02:47.6]} 15. Be2 {[%clk 0:02:12]}
15... Ke7 {[%clk 0:02:38.3]} 16. Qe4 {[%clk 0:02:08.6]} 16... Nd7 {[%clk
0:02:17.3]} 17. Nd5+ {[%clk 0:02:05.2]} 1-0

[Event "*** SCC Grand Prix: Titled Tuesday Blitz"]
[Site "Chess.com"]
[Date "2020.06.23"]
[Round "1"]
[White "ChessArchitect64"]
[Black "IM_Tissir"]
[Result "0-1"]
[WhiteElo "1877"]
[BlackElo "2475"]
[TimeControl "180+1"]
[EndTime "10:02:53 PDT"]
[Termination "IM_Tissir won by resignation"]

1. d4 {[%clk 0:03:00.9]} 1... Nf6 {[%clk 0:02:57]} 2. Nf3 {[%clk 0:03:00.5]}
2... g6 {[%clk 0:02:50.6]} 3. e3 {[%clk 0:03:00.1]} 3... Bg7 {[%clk 0:02:50.3]}
4. Bd3 {[%clk 0:02:59.5]} 4... O-O {[%clk 0:02:49.4]} 5. O-O {[%clk 0:02:59.7]}
5... d6 {[%clk 0:02:50.3]} 6. c4 {[%clk 0:02:59.3]} 6... Nbd7 {[%clk 0:02:48.4]}
7. Nc3 {[%clk 0:02:59.1]} 7... e5 {[%clk 0:02:46.4]} 8. dxe5 {[%clk 0:02:54.4]}
8... dxe5 {[%clk 0:02:39.2]} 9. Be2 {[%clk 0:02:53.2]} 9... c6 {[%clk
0:02:36.2]} 10. b3 {[%clk 0:02:50.2]} 10... e4 {[%clk 0:02:33.7]} 11. Nd4 {[%clk
0:02:49.6]} 11... Ne5 {[%clk 0:02:30.6]} 12. Bb2 {[%clk 0:02:49.1]} 12... Re8
{[%clk 0:02:26.1]} 13. Qc2 {[%clk 0:02:41.3]} 13... Nd3 {[%clk 0:02:14.1]} 14.
Ba3 {[%clk 0:02:34.2]} 14... c5 {[%clk 0:02:07.2]} 15. Ndb5 {[%clk 0:02:23.5]}
15... a6 {[%clk 0:02:04.5]} 16. Nxe4 {[%clk 0:02:22]} 16... axb5 {[%clk
0:01:56.4]} 17. Bxd3 {[%clk 0:02:18]} 17... Nxe4 {[%clk 0:01:50.2]} 18. Bxe4
{[%clk 0:02:13.9]} 18... Rxa3 {[%clk 0:01:48.5]} 0-1

[Event "*** SCC Grand Prix: Titled Tuesday Blitz"]
[Site "Chess.com"]
[Date "2020.06.23"]
[Round "1"]
[White "Xeslu"]
[Black "Shahinyan_ChessMood"]
[Result "0-1"]
[WhiteElo "2277"]
[BlackElo "2608"]
[TimeControl "180+1"]
[EndTime "10:03:11 PDT"]
[Termination "Shahinyan_ChessMood won by resignation"]

1. e4 {[%clk 0:02:58.7]} 1... e6 {[%clk 0:02:59.3]} 2. d4 {[%clk 0:02:51.3]}
2... d5 {[%clk 0:02:57.4]} 3. Nd2 {[%clk 0:02:51.1]} 3... Nc6 {[%clk 0:02:55.2]}
4. Ngf3 {[%clk 0:02:49.8]} 4... Nf6 {[%clk 0:02:54.1]} 5. Bb5 {[%clk 0:02:46.1]}
5... dxe4 {[%clk 0:02:49.5]} 6. Bxc6+ {[%clk 0:02:42.5]} 6... bxc6 {[%clk
0:02:48.1]} 7. Ng5 {[%clk 0:02:31.2]} 7... Qxd4 {[%clk 0:02:40.1]} 8. Qe2 {[%clk
0:02:30]} 8... e3 {[%clk 0:02:24.7]} 9. Qxe3 {[%clk 0:02:24.3]} 9... Qxe3+
{[%clk 0:02:24.5]} 10. fxe3 {[%clk 0:02:25.2]} 10... Ba6 {[%clk 0:02:24.7]} 11.
Nde4 {[%clk 0:02:14.4]} 11... Be7 {[%clk 0:02:09.9]} 12. Bd2 {[%clk 0:02:11]}
12... h6 {[%clk 0:02:06.3]} 13. Nxf6+ {[%clk 0:02:10.4]} 13... Bxf6 {[%clk
0:02:07.2]} 14. Ne4 {[%clk 0:02:09.6]} 14... Bxb2 {[%clk 0:02:07.7]} 15. Rb1
{[%clk 0:02:09.3]} 15... Be5 {[%clk 0:02:08.3]} 16. Nc5 {[%clk 0:02:07.7]} 16...
Bc4 {[%clk 0:02:08.8]} 17. Nd3 {[%clk 0:02:02.3]} 17... Bxa2 {[%clk 0:01:58]}
18. Rb7 {[%clk 0:01:59.8]} 18... Bd6 {[%clk 0:01:57.9]} 19. Bc3 {[%clk
0:01:57.5]} 19... O-O {[%clk 0:01:55.9]} 20. Be5 {[%clk 0:01:54.7]} 20... Rfb8
{[%clk 0:01:52.4]} 21. Rxb8+ {[%clk 0:01:53.9]} 21... Rxb8 {[%clk 0:01:53.3]}
0-1

[Event "*** SCC Grand Prix: Titled Tuesday Blitz"]
[Site "Chess.com"]
[Date "2020.06.23"]
[Round "1"]
[White "grandcoach"]
[Black "pastouche06"]
[Result "1/2-1/2"]
[WhiteElo "2088"]
[BlackElo "2496"]
[TimeControl "180+1"]
[EndTime "10:03:12 PDT"]
[Termination "Game drawn by agreement"]

1. e4 {[%clk 0:03:00.9]} 1... c6 {[%clk 0:02:58.4]} 2. d4 {[%clk 0:03:00.1]}
2... d5 {[%clk 0:02:58.7]} 3. e5 {[%clk 0:03:00.7]} 3... Bf5 {[%clk 0:02:55]} 4.
Nf3 {[%clk 0:03:01.6]} 4... e6 {[%clk 0:02:55]} 5. Be2 {[%clk 0:03:02.5]} 5...
Ne7 {[%clk 0:02:54.9]} 6. O-O {[%clk 0:03:03.4]} 6... Ng6 {[%clk 0:02:55.2]} 7.
Nbd2 {[%clk 0:03:03.3]} 7... Nf4 {[%clk 0:02:55.1]} 8. Nb3 {[%clk 0:02:57.1]}
8... Nxe2+ {[%clk 0:02:54.6]} 9. Qxe2 {[%clk 0:02:58]} 9... Be7 {[%clk
0:02:55.1]} 10. Bd2 {[%clk 0:02:44.7]} 10... O-O {[%clk 0:02:53.2]} 11. a4
{[%clk 0:02:36.5]} 11... Nd7 {[%clk 0:02:49.4]} 12. Rfc1 {[%clk 0:02:14.1]}
12... Rc8 {[%clk 0:02:37.8]} 13. a5 {[%clk 0:02:12.2]} 13... c5 {[%clk
0:02:31.8]} 14. dxc5 {[%clk 0:02:08]} 14... Nxc5 {[%clk 0:02:32.7]} 15. Nfd4
{[%clk 0:01:52.7]} 15... Bg6 {[%clk 0:02:30.6]} 16. Nxc5 {[%clk 0:01:46.7]}
16... Bxc5 {[%clk 0:02:28.5]} 17. c3 {[%clk 0:01:47.3]} 17... Bxd4 {[%clk
0:02:17.8]} 18. cxd4 {[%clk 0:01:48.2]} 18... Qd7 {[%clk 0:02:18.3]} 19. Bb4
{[%clk 0:01:43.8]} 19... Rxc1+ {[%clk 0:02:16.7]} 20. Rxc1 {[%clk 0:01:41.7]}
20... Rc8 {[%clk 0:02:17.2]} 21. Rxc8+ {[%clk 0:01:28.5]} 21... Qxc8 {[%clk
0:02:18.1]} 1/2-1/2

[Event "*** SCC Grand Prix: Titled Tuesday Blitz"]
[Site "Chess.com"]
[Date "2020.06.23"]
[Round "1"]
[White "blitzking1729"]
[Black "MacDaddyMac"]
[Result "1-0"]
[WhiteElo "2586"]
[BlackElo "2254"]
[TimeControl "180+1"]
[EndTime "10:03:18 PDT"]
[Termination "blitzking1729 won by resignation"]

1. d4 {[%clk 0:03:00.3]} 1... Nf6 {[%clk 0:02:52]} 2. Bg5 {[%clk 0:02:57]} 2...
d5 {[%clk 0:02:46.1]} 3. Nd2 {[%clk 0:02:56.4]} 3... b6 {[%clk 0:02:41.8]} 4. e3
{[%clk 0:02:48.2]} 4... Bb7 {[%clk 0:02:41.4]} 5. Bd3 {[%clk 0:02:44.9]} 5...
Nbd7 {[%clk 0:02:39.9]} 6. c3 {[%clk 0:02:43.8]} 6... h6 {[%clk 0:02:37.5]} 7.
Bh4 {[%clk 0:02:43]} 7... e6 {[%clk 0:02:33.9]} 8. f4 {[%clk 0:02:39.1]} 8...
Be7 {[%clk 0:02:33.8]} 9. Qf3 {[%clk 0:02:38.6]} 9... c5 {[%clk 0:02:32.2]} 10.
Nh3 {[%clk 0:02:37.9]} 10... Ne4 {[%clk 0:02:04.8]} 11. Bxe7 {[%clk 0:02:36.3]}
11... Nxd2 {[%clk 0:02:05]} 12. Bxd8 {[%clk 0:02:25.4]} 12... Nxf3+ {[%clk
0:02:04.4]} 13. gxf3 {[%clk 0:02:26.3]} 13... Rxd8 {[%clk 0:02:03.8]} 14. Rg1
{[%clk 0:02:26.6]} 14... g6 {[%clk 0:01:57.3]} 15. Nf2 {[%clk 0:02:26.3]} 15...
cxd4 {[%clk 0:01:55.9]} 16. cxd4 {[%clk 0:02:26.2]} 16... Rc8 {[%clk 0:01:55.2]}
17. Kd2 {[%clk 0:02:26.4]} 17... Ke7 {[%clk 0:01:55.1]} 18. Rac1 {[%clk
0:02:25.5]} 18... Nf6 {[%clk 0:01:51.9]} 19. a4 {[%clk 0:02:17.3]} 19... Nh5
{[%clk 0:01:51.3]} 20. a5 {[%clk 0:02:16.1]} 20... bxa5 {[%clk 0:01:47.7]} 21.
Ra1 {[%clk 0:02:14.6]} 21... Rc6 {[%clk 0:01:46.9]} 22. Rxa5 {[%clk 0:02:13.9]}
22... Rb6 {[%clk 0:01:47.2]} 23. Rb1 {[%clk 0:02:11]} 23... a6 {[%clk
0:01:45.9]} 24. Nd1 {[%clk 0:02:10.8]} 24... Rc8 {[%clk 0:01:39.8]} 25. Rba1
{[%clk 0:02:10]} 25... Rc5 {[%clk 0:01:39.9]} 26. dxc5 {[%clk 0:02:09.2]} 1-0

[Event "*** SCC Grand Prix: Titled Tuesday Blitz"]
[Site "Chess.com"]
[Date "2020.06.23"]
[Round "1"]
[White "lilleper1"]
[Black "Belka1989"]
[Result "1-0"]
[WhiteElo "2697"]
[BlackElo "2353"]
[TimeControl "180+1"]
[EndTime "10:03:33 PDT"]
[Termination "lilleper1 won by resignation"]

1. d4 {[%clk 0:03:00.7]} 1... Nf6 {[%clk 0:02:57.6]} 2. c4 {[%clk 0:03:00.7]}
2... e5 {[%clk 0:02:57.4]} 3. dxe5 {[%clk 0:02:58.7]} 3... Ng4 {[%clk
0:02:56.6]} 4. Nf3 {[%clk 0:02:58.2]} 4... Bc5 {[%clk 0:02:53.6]} 5. e3 {[%clk
0:02:55.6]} 5... Nc6 {[%clk 0:02:52]} 6. Be2 {[%clk 0:02:38.6]} 6... O-O {[%clk
0:02:49.2]} 7. O-O {[%clk 0:02:37.2]} 7... Re8 {[%clk 0:02:48.7]} 8. Nc3 {[%clk
0:02:35.9]} 8... Ngxe5 {[%clk 0:02:47.6]} 9. Nxe5 {[%clk 0:02:35]} 9... Nxe5
{[%clk 0:02:48.5]} 10. b3 {[%clk 0:02:34.9]} 10... a5 {[%clk 0:02:45.7]} 11. Bb2
{[%clk 0:02:34.2]} 11... Ra6 {[%clk 0:02:44.9]} 12. Ne4 {[%clk 0:02:24.8]} 12...
Ba7 {[%clk 0:02:40.5]} 13. c5 {[%clk 0:02:21.4]} 13... Rh6 {[%clk 0:02:37.4]}
14. h3 {[%clk 0:01:59.6]} 14... Qh4 {[%clk 0:02:27.7]} 15. Ng3 {[%clk 0:01:59]}
15... d6 {[%clk 0:02:27]} 16. cxd6 {[%clk 0:01:43.2]} 16... Bxh3 {[%clk
0:02:23.3]} 17. Bxe5 {[%clk 0:01:24.3]} 17... Bxg2 {[%clk 0:01:57.1]} 18. Kxg2
{[%clk 0:01:23.2]} 18... Qh5 {[%clk 0:01:58]} 19. Bxh5 {[%clk 0:01:22.1]} 1-0

[Event "*** SCC Grand Prix: Titled Tuesday Blitz"]
[Site "Chess.com"]
[Date "2020.06.23"]
[Round "1"]
[White "AttilaTurzo"]
[Black "Chessy222222"]
[Result "1/2-1/2"]
[WhiteElo "2507"]
[BlackElo "2129"]
[TimeControl "180+1"]
[EndTime "10:03:35 PDT"]
[Termination "Game drawn by repetition"]

1. e4 {[%clk 0:02:59.8]} 1... e5 {[%clk 0:02:59.7]} 2. Nf3 {[%clk 0:02:59.5]}
2... Nc6 {[%clk 0:02:59.8]} 3. Bb5 {[%clk 0:02:59.8]} 3... a6 {[%clk 0:03:00]}
4. Ba4 {[%clk 0:03:00]} 4... d6 {[%clk 0:03:00.3]} 5. O-O {[%clk 0:02:58.8]}
5... Bg4 {[%clk 0:02:59.5]} 6. h3 {[%clk 0:02:57.2]} 6... h5 {[%clk 0:02:59.2]}
7. c3 {[%clk 0:02:45.4]} 7... Qf6 {[%clk 0:02:58.1]} 8. d3 {[%clk 0:02:10.3]}
8... Ne7 {[%clk 0:02:56.8]} 9. Nbd2 {[%clk 0:02:09.4]} 9... Ng6 {[%clk
0:02:55.9]} 10. Qe1 {[%clk 0:01:56.5]} 10... Nf4 {[%clk 0:02:46.5]} 11. Qe3
{[%clk 0:01:49.7]} 11... Bxh3 {[%clk 0:02:44.2]} 12. Ne1 {[%clk 0:01:29.7]}
12... Qg6 {[%clk 0:02:30.1]} 13. Qf3 {[%clk 0:01:26.8]} 13... Bg4 {[%clk
0:02:11.9]} 14. Qe3 {[%clk 0:01:25.5]} 14... Bh3 {[%clk 0:01:57.7]} 15. Qf3
{[%clk 0:01:17.1]} 15... Bg4 {[%clk 0:01:57]} 16. Qe3 {[%clk 0:01:16.2]} 16...
Bh3 {[%clk 0:01:57.3]} 1/2-1/2

[Event "*** SCC Grand Prix: Titled Tuesday Blitz"]
[Site "Chess.com"]
[Date "2020.06.23"]
[Round "1"]
[White "Irina_Barchuk"]
[Black "Roman_Ovetchkin"]
[Result "0-1"]
[WhiteElo "2199"]
[BlackElo "2552"]
[TimeControl "180+1"]
[EndTime "10:03:43 PDT"]
[Termination "Roman_Ovetchkin won by resignation"]

1. e4 {[%clk 0:03:00.2]} 1... c6 {[%clk 0:02:59.4]} 2. d4 {[%clk 0:02:59.5]}
2... d5 {[%clk 0:03:00.3]} 3. e5 {[%clk 0:02:59.7]} 3... Bf5 {[%clk 0:03:00]} 4.
Nf3 {[%clk 0:02:58.9]} 4... e6 {[%clk 0:03:00]} 5. Be2 {[%clk 0:02:55.9]} 5...
Nd7 {[%clk 0:02:59.5]} 6. O-O {[%clk 0:02:52.9]} 6... Bg6 {[%clk 0:02:56.5]} 7.
c4 {[%clk 0:02:49.3]} 7... dxc4 {[%clk 0:02:55.2]} 8. Bxc4 {[%clk 0:02:48.9]}
8... Ne7 {[%clk 0:02:55]} 9. Nc3 {[%clk 0:02:46.4]} 9... Nd5 {[%clk 0:02:47.2]}
10. Nxd5 {[%clk 0:02:40.3]} 10... cxd5 {[%clk 0:02:46.8]} 11. Bd3 {[%clk
0:02:40.8]} 11... Bh5 {[%clk 0:02:33.3]} 12. h3 {[%clk 0:02:36.2]} 12... Be7
{[%clk 0:02:31.4]} 13. b3 {[%clk 0:02:24.9]} 13... O-O {[%clk 0:02:22.6]} 14. g4
{[%clk 0:02:16.7]} 14... Bg6 {[%clk 0:02:22]} 15. Bxg6 {[%clk 0:02:17.2]} 15...
fxg6 {[%clk 0:02:17.3]} 16. g5 {[%clk 0:01:48.5]} 16... Qb6 {[%clk 0:02:09.1]}
17. Be3 {[%clk 0:01:32.3]} 17... Nb8 {[%clk 0:01:53.7]} 18. h4 {[%clk
0:01:30.4]} 18... Nc6 {[%clk 0:01:53.5]} 19. Qd2 {[%clk 0:01:24.7]} 19... Rxf3
{[%clk 0:01:51.8]} 0-1

[Event "*** SCC Grand Prix: Titled Tuesday Blitz"]
[Site "Chess.com"]
[Date "2020.06.23"]
[Round "1"]
[White "Ural_bogatyr"]
[Black "NewBornNow"]
[Result "0-1"]
[WhiteElo "2351"]
[BlackElo "2694"]
[TimeControl "180+1"]
[EndTime "10:03:48 PDT"]
[Termination "NewBornNow won by resignation"]

1. e4 {[%clk 0:02:53.2]} 1... c5 {[%clk 0:02:59.9]} 2. Nf3 {[%clk 0:02:52.4]}
2... e6 {[%clk 0:02:59.5]} 3. c3 {[%clk 0:02:52.1]} 3... Nf6 {[%clk 0:02:58.5]}
4. e5 {[%clk 0:02:52.1]} 4... Nd5 {[%clk 0:02:59.1]} 5. d4 {[%clk 0:02:52.7]}
5... cxd4 {[%clk 0:02:59.4]} 6. Qxd4 {[%clk 0:02:53.4]} 6... Nc6 {[%clk
0:02:58]} 7. Qe4 {[%clk 0:02:53.6]} 7... f5 {[%clk 0:02:56.9]} 8. exf6 {[%clk
0:02:50]} 8... Nxf6 {[%clk 0:02:56]} 9. Qh4 {[%clk 0:02:49.1]} 9... Be7 {[%clk
0:02:55.3]} 10. Bd3 {[%clk 0:02:49.2]} 10... e5 {[%clk 0:02:55.1]} 11. Bg6+
{[%clk 0:02:26.4]} 11... Kf8 {[%clk 0:02:53.9]} 12. Bc2 {[%clk 0:02:26.1]} 12...
d5 {[%clk 0:02:51.3]} 13. Qa4 {[%clk 0:02:18.4]} 13... e4 {[%clk 0:02:48.3]} 14.
Nd4 {[%clk 0:02:17.5]} 14... Bd7 {[%clk 0:02:47.5]} 15. Nxc6 {[%clk 0:01:58.6]}
15... Bxc6 {[%clk 0:02:45.5]} 16. Qb3 {[%clk 0:01:54]} 16... Bd6 {[%clk
0:02:41.3]} 17. Bg5 {[%clk 0:01:48.5]} 17... Qe7 {[%clk 0:02:39.3]} 18. Nd2
{[%clk 0:01:45.8]} 18... h6 {[%clk 0:02:31.4]} 19. Bh4 {[%clk 0:01:43.5]} 19...
g5 {[%clk 0:02:28.4]} 20. Bg3 {[%clk 0:01:43.2]} 20... Bxg3 {[%clk 0:02:27.3]}
21. hxg3 {[%clk 0:01:44.1]} 21... e3 {[%clk 0:02:27.3]} 22. Nf1 {[%clk
0:00:58.9]} 22... exf2+ {[%clk 0:02:25.2]} 23. Kxf2 {[%clk 0:00:59.8]} 23...
Ng4+ {[%clk 0:02:23.7]} 24. Kg1 {[%clk 0:00:58.9]} 24... Qc5+ {[%clk 0:02:22.3]}
0-1

[Event "*** SCC Grand Prix: Titled Tuesday Blitz"]
[Site "Chess.com"]
[Date "2020.06.23"]
[Round "1"]
[White "Kavyev_Ruslan"]
[Black "H3nriqueTV"]
[Result "1/2-1/2"]
[WhiteElo "2539"]
[BlackElo "2200"]
[TimeControl "180+1"]
[EndTime "10:03:49 PDT"]
[Termination "Game drawn by agreement"]

1. d4 {[%clk 0:03:00.9]} 1... d5 {[%clk 0:02:52.7]} 2. c4 {[%clk 0:02:59.2]}
2... c6 {[%clk 0:02:53]} 3. Nf3 {[%clk 0:02:59.4]} 3... Nf6 {[%clk 0:02:53.3]}
4. g3 {[%clk 0:02:59.8]} 4... Bf5 {[%clk 0:02:53]} 5. Nc3 {[%clk 0:02:59.3]}
5... e6 {[%clk 0:02:53.4]} 6. Nh4 {[%clk 0:02:59.9]} 6... Bg6 {[%clk 0:02:53.4]}
7. Qb3 {[%clk 0:02:59.5]} 7... Qb6 {[%clk 0:02:52.5]} 8. Nxg6 {[%clk 0:02:59.1]}
8... hxg6 {[%clk 0:02:51.8]} 9. c5 {[%clk 0:02:59.4]} 9... Qxb3 {[%clk
0:02:51.7]} 10. axb3 {[%clk 0:03:00.3]} 10... Nbd7 {[%clk 0:02:51.7]} 11. b4
{[%clk 0:03:00.6]} 11... Be7 {[%clk 0:02:51.4]} 12. b5 {[%clk 0:02:59.7]} 12...
O-O {[%clk 0:02:50.4]} 13. b4 {[%clk 0:02:59.7]} 13... a5 {[%clk 0:02:45.4]} 14.
bxc6 {[%clk 0:02:59.3]} 14... axb4 {[%clk 0:02:43.5]} 15. Rxa8 {[%clk
0:02:28.9]} 15... Rxa8 {[%clk 0:02:44.4]} 16. cxd7 {[%clk 0:02:29.5]} 16... bxc3
{[%clk 0:02:43.8]} 17. Bg2 {[%clk 0:02:24.5]} 17... Nxd7 {[%clk 0:02:43.2]} 18.
O-O {[%clk 0:02:24.3]} 18... Ra2 {[%clk 0:02:43.6]} 19. e4 {[%clk 0:02:23]}
19... Nf6 {[%clk 0:02:30.5]} 20. Bg5 {[%clk 0:02:22.7]} 20... dxe4 {[%clk
0:02:27.2]} 21. Rc1 {[%clk 0:02:01.6]} 21... c2 {[%clk 0:02:24.7]} 22. Bxf6
{[%clk 0:02:01.3]} 22... Bxf6 {[%clk 0:02:24.5]} 23. Bxe4 {[%clk 0:02:02.2]}
23... Bxd4 {[%clk 0:02:23.6]} 24. Rxc2 {[%clk 0:02:02.3]} 24... Rxc2 {[%clk
0:02:22.8]} 25. Bxc2 {[%clk 0:02:03.2]} 25... Bxc5 {[%clk 0:02:23.2]} 26. Kf1
{[%clk 0:02:03.8]} 26... Kf8 {[%clk 0:02:23.2]} 27. Ke2 {[%clk 0:02:04.4]} 27...
Ke7 {[%clk 0:02:24.1]} 28. f3 {[%clk 0:02:04.3]} 28... Kd6 {[%clk 0:02:24.8]}
29. Kd3 {[%clk 0:02:04.9]} 29... Bg1 {[%clk 0:02:23.1]} 30. h3 {[%clk
0:02:04.7]} 30... g5 {[%clk 0:02:21.9]} 31. Bb3 {[%clk 0:02:00.5]} 31... f5
{[%clk 0:02:20.9]} 32. g4 {[%clk 0:01:59.9]} 32... fxg4 {[%clk 0:02:17.4]} 33.
hxg4 {[%clk 0:01:58.7]} 33... Ke5 {[%clk 0:02:17.2]} 34. Ke2 {[%clk 0:01:55.8]}
34... Bh2 {[%clk 0:02:11.8]} 35. Kd3 {[%clk 0:01:52.7]} 35... Kf4 {[%clk
0:02:07.7]} 36. Bxe6 {[%clk 0:01:52.5]} 36... Kxf3 {[%clk 0:02:07.8]} 37. Kc4
{[%clk 0:01:53]} 37... Bg1 {[%clk 0:02:03.6]} 38. Kb5 {[%clk 0:01:52.5]} 38...
b6 {[%clk 0:02:04]} 39. Bc8 {[%clk 0:01:52.9]} 39... Kf4 {[%clk 0:02:01.9]} 40.
Bd7 {[%clk 0:01:53.4]} 1/2-1/2

[Event "*** SCC Grand Prix: Titled Tuesday Blitz"]
[Site "Chess.com"]
[Date "2020.06.23"]
[Round "1"]
[White "volcanoexplorer"]
[Black "vitnik2020"]
[Result "1-0"]
[WhiteElo "2611"]
[BlackElo "2299"]
[TimeControl "180+1"]
[EndTime "10:04:04 PDT"]
[Termination "volcanoexplorer won by resignation"]

1. e4 {[%clk 0:03:00.9]} 1... e5 {[%clk 0:02:58.9]} 2. Nf3 {[%clk 0:03:00.9]}
2... Nc6 {[%clk 0:02:57.3]} 3. Bc4 {[%clk 0:03:01.2]} 3... Bc5 {[%clk
0:02:55.8]} 4. O-O {[%clk 0:03:01.3]} 4... Nf6 {[%clk 0:02:54.7]} 5. d3 {[%clk
0:03:01.8]} 5... d6 {[%clk 0:02:54.3]} 6. c3 {[%clk 0:03:01.9]} 6... a5 {[%clk
0:02:53.6]} 7. a4 {[%clk 0:02:58.5]} 7... O-O {[%clk 0:02:52.2]} 8. Nbd2 {[%clk
0:02:58.6]} 8... h6 {[%clk 0:02:44.9]} 9. Re1 {[%clk 0:02:58]} 9... Be6 {[%clk
0:02:44.2]} 10. h3 {[%clk 0:02:57.5]} 10... Bxc4 {[%clk 0:02:30.5]} 11. Nxc4
{[%clk 0:02:58.4]} 11... Ne7 {[%clk 0:02:30.2]} 12. d4 {[%clk 0:02:50]} 12...
exd4 {[%clk 0:02:29.2]} 13. cxd4 {[%clk 0:02:50.9]} 13... Bb4 {[%clk 0:02:28.9]}
14. Bd2 {[%clk 0:02:50.7]} 14... d5 {[%clk 0:02:25.8]} 15. e5 {[%clk 0:02:32.7]}
15... Ne4 {[%clk 0:02:19.9]} 16. Bxb4 {[%clk 0:02:27.8]} 16... axb4 {[%clk
0:02:18.9]} 17. Ncd2 {[%clk 0:02:22.1]} 17... f5 {[%clk 0:01:37]} 18. exf6
{[%clk 0:02:01.2]} 18... Nxf6 {[%clk 0:01:34.8]} 19. Ne5 {[%clk 0:02:01.5]}
19... Nf5 {[%clk 0:01:29.3]} 20. Ndf3 {[%clk 0:01:59.8]} 20... Ne4 {[%clk
0:01:21.4]} 21. Qb3 {[%clk 0:01:53.2]} 21... Qd6 {[%clk 0:01:17.4]} 22. Rxe4
{[%clk 0:01:48.7]} 1-0